bitfinex-derivatives/quotes_SOLF0:USTF0_20260211
["timestamp","ask_amount","ask_price","bid_price","bid_amount"]
[1770846040359,3.91936175,80.73,80.681,33.05916312]
[1770846040559,32.83571518,80.739,80.681,33.05916312]
[1770846040560,3.91936175,80.72,80.681,33.05916312]
[1770846040753,3.91936175,80.72,80.695,11.1613]
[1770846042354,3.91936175,80.72,80.687,11.1625]
[1770846042670,3.91936175,80.72,80.649,242.12]
[1770846042671,3.91936175,80.7,80.667,33.05916312]
[1770846043568,3.91936175,80.7,80.67,11.1648]
[1770846043760,3.91936175,80.69,80.67,11.1648]
[1770846044162,3.91936175,80.7,80.667,33.05916312]
[1770846044368,3.91936175,80.68,80.648,33.05916312]
[1770846044567,3.91936175,80.67,80.648,33.05916312]
[1770846044972,3.91936175,80.67,80.589,294.0]
[1770846044973,3.91936175,80.66,80.634,33.05916312]
[1770846046665,3.91936175,80.67,80.634,33.05916312]
[1770846046867,3.91936175,80.66,80.634,33.05916312]
[1770846047972,3.91936175,80.66,80.62,33.05916312]
[1770846048172,3.91936175,80.65,80.62,33.05916312]
[1770846050073,3.91936175,80.64,80.606,33.05916312]
[1770846050872,3.91936175,80.65,80.606,33.05916312]
[1770846051882,3.91936175,80.65,80.609,35.19243228]
[1770846052783,3.91936175,80.65,80.618,11.172]
[1770846053382,3.91936175,80.65,80.619,35.19243228]
[1770846053579,3.91936175,80.66,80.622,35.19243228]
[1770846054276,3.91936175,80.66,80.623,11.1714]
[1770846054472,3.91936175,80.65,80.623,11.1714]
[1770846054669,3.91936175,80.66,80.623,11.1714]
[1770846054876,3.91936175,80.64,80.614,11.1726]
[1770846055683,3.91936175,80.65,80.614,11.1726]
[1770846055883,3.91936175,80.64,80.609,35.19243228]
[1770846056378,3.91936175,80.64,80.61,11.1732]
[1770846057075,3.9404326,80.64,80.61,11.1732]
[1770846057484,3.9404326,80.64,80.609,35.19243228]
[1770846057877,3.9404326,80.64,80.591,35.19243228]
[1770846058488,3.9404326,80.64,80.61,11.1731]
[1770846059381,3.9404326,80.63,80.602,11.1743]
[1770846059783,3.9404326,80.63,80.595,11.1753]
[1770846059978,3.9404326,80.63,80.591,35.19243228]
[1770846060581,3.9404326,80.63,80.609,11.1733]
[1770846060783,35.60235551,80.667,80.61,35.19243228]
[1770846060982,3.9404326,80.66,80.61,39.13286488]
[1770846061288,3.9404326,80.66,80.536,173.9643]
[1770846061289,3.9404326,80.62,80.579,35.19243228]
[1770846062095,3.9404326,80.61,80.565,35.19243228]
[1770846062293,3.9404326,80.6,80.591,0.078279]
[1770846062490,35.60235551,80.599,80.551,484.73675895]
[1770846062693,3.9404326,80.57,80.533,35.19243228]
[1770846062894,3.9404326,80.57,80.541,11.1827]
[1770846063193,3.9404326,80.57,80.506,244.42]
[1770846063194,3.9404326,80.56,80.519,35.19243228]
[1770846063897,39.54278811,80.55,80.503,35.19243228]
[1770846064196,3.9404326,80.53,80.496,487.48201665]
[1770846064696,3.9404326,80.53,80.498,11.1887]
[1770846064896,46.18465369,80.55,80.498,11.1887]
[1770846065094,35.60235551,80.549,80.497,35.19243228]
[1770846065301,35.60235551,80.549,80.506,11.1876]
[1770846065793,35.60235551,80.549,80.497,46.38123228]
[1770846065997,35.60235551,80.549,80.497,35.19243228]
[1770846066696,35.60235551,80.547,80.487,11.1901]
[1770846067595,10.58229818,80.55,80.482,35.19243228]
[1770846067596,35.60235551,80.545,80.482,35.19243228]
[1770846067791,0.07929614,80.525,80.482,35.19243228]
[1770846070599,46.78285551,80.558,80.485,35.19243228]
[1770846070793,35.60235551,80.557,80.485,35.19243228]
[1770846070999,35.60235551,80.554,80.485,35.19243228]
[1770846071896,10.58229818,80.54,80.485,35.19243228]
[1770846072098,35.60235551,80.539,80.485,35.19243228]
[1770846072504,46.78565551,80.538,80.485,35.19243228]
[1770846072704,35.60235551,80.537,80.485,35.19243228]
[1770846073100,10.58229818,80.55,80.485,35.19243228]
[1770846073302,35.60235551,80.549,80.485,35.19243228]
[1770846074806,35.60235551,80.546,80.485,35.19243228]
[1770846075905,35.60235551,80.542,80.485,35.19243228]
[1770846076707,35.60235551,80.539,80.505,0.07988695]
[1770846077508,11.1836,80.536,80.505,0.07988695]
[1770846079313,11.1851,80.524,80.505,0.07988695]
[1770846079504,35.60235551,80.523,80.469,35.19243228]
[1770846080917,0.08044239,80.504,80.469,35.19243228]
[1770846083513,11.1852,80.524,80.469,35.19243228]
[1770846084716,11.1861,80.518,80.469,35.19243228]
[1770846085313,11.1861,80.518,80.471,35.31933115]
[1770846087412,11.1861,80.518,80.486,0.08041608]
[1770846088916,11.1869,80.512,80.486,0.08041608]
[1770846089617,36.22269303,80.525,80.486,0.08041608]
[1770846090927,35.86499552,80.522,80.486,0.08041608]
[1770846092823,35.86499552,80.52,80.486,0.08041608]
[1770846093325,35.86499552,80.549,80.486,35.91051985]
[1770846093526,35.86499552,80.549,80.486,0.08041608]
[1770846093721,35.86499552,80.549,80.471,35.83010377]
[1770846093722,35.86499552,80.529,80.471,35.83010377]
[1770846094619,35.86499552,80.529,80.492,0.07906504]
[1770846094821,11.1853,80.523,80.492,0.07906504]
[1770846095128,35.86499552,80.523,80.492,0.07906504]
[1770846095330,35.86499552,80.509,80.458,35.83010377]
[1770846096827,35.86499552,80.509,80.46,35.83010377]
[1770846097733,35.86499552,80.509,80.463,35.83010377]
[1770846098323,35.86499552,80.509,80.464,11.1934]
[1770846098522,11.1857,80.521,80.465,35.83010377]
[1770846099127,35.86499552,80.527,80.475,11.1919]
[1770846099429,35.86499552,80.527,80.465,35.83010377]
[1770846100229,0.07912484,80.504,80.465,35.83010377]
[1770846100630,0.07912484,80.504,80.479,11.1914]
[1770846101234,0.07912484,80.504,80.472,11.1923]
[1770846103930,0.07912484,80.504,80.478,11.1915]
[1770846107645,0.07912484,80.504,80.465,35.83010377]
[1770846109543,0.07912484,80.504,80.471,35.83010377]
[1770846112439,3.95293372,80.49,80.454,34.52327045]
[1770846113345,3.95293372,80.48,80.437,34.52327045]
[1770846113540,34.24500554,80.489,80.437,34.52327045]
[1770846113941,11.1903,80.487,80.437,34.52327045]
[1770846114244,3.95293372,80.48,80.437,34.52327045]
[1770846115044,11.1914,80.479,80.437,34.52327045]
[1770846116648,0.07925393,80.466,80.437,34.52327045]
[1770846119446,0.07925393,80.466,80.425,34.52327045]
[1770846119644,0.07925393,80.466,80.437,34.52327045]
[1770846121646,0.07925393,80.466,80.426,251.86]
[1770846121847,34.24500554,80.465,80.425,34.52327045]
[1770846122251,34.24500554,80.452,80.412,34.52327045]
[1770846122454,3.9552022,80.45,80.412,34.52327045]
[1770846122654,34.24500554,80.439,80.39,3.9552022]
[1770846122853,38.20020774,80.43,80.384,34.52327045]
[1770846123049,34.24500554,80.43,80.384,34.52327045]
[1770846124143,11.1988,80.427,80.384,34.52327045]
[1770846125344,11.1988,80.427,80.358,2.16415219]
[1770846125345,11.1975,80.436,80.401,34.52327045]
[1770846127352,11.1961,80.446,80.401,34.52327045]
[1770846127854,3.9552022,80.46,80.358,2.16415219]
[1770846127855,34.24500554,80.469,80.411,34.52327045]
[1770846128053,34.24500554,80.469,80.421,34.52327045]
[1770846128245,3.9552022,80.45,80.408,34.52327045]
[1770846128857,38.20020774,80.45,80.408,34.52327045]
[1770846129962,3.9552022,80.46,80.411,34.52327045]
[1770846130261,34.24500554,80.465,80.411,34.52327045]
[1770846130446,3.9552022,80.46,80.411,34.52327045]
[1770846130850,3.9552022,80.45,80.411,34.52327045]
[1770846133467,38.20020774,80.44,80.398,34.52327045]
[1770846133760,3.9552022,80.43,80.398,34.52327045]
[1770846133956,3.9552022,80.43,80.38,3.9552022]
[1770846134163,3.9552022,80.43,80.381,34.52327045]
[1770846135067,3.9552022,80.42,80.381,34.52327045]
[1770846135763,3.9552022,80.42,80.382,34.52327045]
[1770846136468,3.9552022,80.43,80.382,34.52327045]
[1770846136771,11.1972,80.438,80.382,34.52327045]
[1770846137472,11.1972,80.438,80.391,34.52327045]
[1770846137667,3.9552022,80.44,80.391,34.52327045]
[1770846137965,3.9552022,80.45,80.407,34.52327045]
[1770846138864,3.9552022,80.46,80.412,34.52327045]
[1770846139262,3.9552022,80.45,80.417,11.2]
[1770846139460,3.9552022,80.46,80.418,34.52327045]
[1770846140565,3.9552022,80.44,80.405,35.67541803]
[1770846140873,3.9552022,80.45,80.405,35.67541803]
[1770846141064,3.9552022,80.45,80.412,11.2006]
[1770846141366,37.80923565,80.46,80.413,35.67541803]
[1770846141565,37.80923565,80.46,80.414,11.2003]
[1770846141566,3.9552022,80.45,80.414,11.2003]
[1770846142971,3.9552022,80.45,80.42,11.1996]
[1770846143164,0.07847465,80.44,80.42,11.1996]
[1770846143359,45.04813345,80.46,76.968,378.08924504]
[1770846143360,3.9552022,80.46,80.421,35.67541803]
[1770846143564,3.9552022,80.47,80.421,35.67541803]
[1770846143765,3.9552022,80.47,80.435,11.1975]
[1770846143981,3.9552022,80.47,80.435,46.87291803]
[1770846144666,3.9552022,80.47,80.435,35.67541803]
[1770846145267,33.85403345,80.474,80.435,35.67541803]
[1770846145268,3.9552022,80.46,80.435,35.67541803]
[1770846145670,3.9552022,80.47,80.435,35.67541803]
[1770846146061,11.1928,80.469,80.435,35.67541803]
[1770846146467,3.9552022,80.46,80.435,35.67541803]
[1770846147570,3.9552022,80.46,80.418,33.97961577]
[1770846148173,3.9552022,80.46,80.421,33.97961577]
[1770846148569,3.9552022,80.46,80.431,0.07957388]
[1770846148966,33.85403345,80.474,80.431,0.07957388]
[1770846149268,3.9552022,80.47,80.434,33.97961577]
[1770846150772,3.9552022,80.46,80.421,33.97961577]
[1770846151075,3.9552022,80.45,80.421,33.97961577]
[1770846153274,3.9552022,80.46,80.421,33.97961577]
[1770846154672,3.9552022,80.46,80.432,0.0786843]
[1770846154873,11.1944,80.458,80.432,0.0786843]
[1770846156779,35.25225727,80.476,80.432,34.05830007]
[1770846156974,3.9552022,80.47,80.432,34.05830007]
[1770846157170,3.9552022,80.46,80.432,0.0786843]
[1770846157371,35.25225727,80.439,80.334,33.97961577]
[1770846157575,39.20745947,80.36,80.343,4.59e-05]
[1770846157877,3.9552022,80.35,80.303,33.97961577]
[1770846158076,3.9552022,80.34,80.288,33.97961577]
[1770846158567,3.9552022,80.36,80.311,33.97961577]
[1770846158771,9.61281634,80.359,80.311,33.97961577]
[1770846158977,9.61281634,80.358,80.311,33.97961577]
[1770846159181,35.25225727,80.377,80.29,10.62705529]
[1770846159182,35.25225727,80.377,80.312,33.97961577]
[1770846159468,10.62705529,80.4,80.314,33.97961577]
[1770846159670,9.59622692,80.399,80.333,33.97961577]
[1770846159977,35.25225727,80.428,80.351,33.97961577]
[1770846160173,35.25225727,80.414,80.351,33.97961577]
[1770846160474,35.25225727,80.412,80.351,33.97961577]
[1770846160674,9.59362834,80.411,80.351,33.97961577]
[1770846160881,9.59362834,80.41,80.351,33.97961577]
[1770846161175,9.59362834,80.409,80.353,33.97961577]
[1770846161480,9.59362834,80.408,80.353,33.97961577]
[1770846161782,9.59362834,80.407,80.353,33.97961577]
[1770846161980,9.59362834,80.406,80.353,33.97961577]
[1770846162278,9.59362834,80.405,80.357,33.97961577]
[1770846162480,9.59362834,80.404,80.357,33.97961577]
[1770846162680,9.59362834,80.403,80.357,33.97961577]
[1770846162871,46.45305727,80.412,80.357,33.97961577]
[1770846163075,9.59165427,80.411,80.357,33.97961577]
[1770846163274,11.2013,80.408,80.357,33.97961577]
[1770846163476,9.59165427,80.407,80.357,33.97961577]
[1770846163776,11.2013,80.408,80.357,33.97961577]
[1770846163777,9.59165427,80.406,80.357,33.97961577]
[1770846163977,0.0789616,80.391,80.357,33.97961577]
[1770846165184,0.0789616,80.391,80.331,33.97961577]
[1770846165777,35.25225727,80.399,80.331,33.97961577]
[1770846165979,11.30219341,80.425,80.331,33.97961577]
[1770846165980,35.25225727,80.397,80.331,33.97961577]
[1770846166172,9.59035072,80.396,80.331,33.97961577]
[1770846166489,10.62705529,80.4,80.331,33.97961577]
[1770846166780,35.25225727,80.409,80.34,10.62705529]
[1770846166982,9.58684043,80.408,80.341,33.97961577]
[1770846167179,35.25225727,80.409,80.341,33.97961577]
[1770846167374,9.58699074,80.408,80.341,33.97961577]
[1770846167583,9.58699074,80.407,80.341,33.97961577]
[1770846167784,9.58699074,80.406,80.341,33.97961577]
[1770846167975,9.58699074,80.405,80.341,33.97961577]
[1770846168282,9.58699074,80.404,80.341,33.97961577]
[1770846168471,35.25225727,80.408,80.343,33.97961577]
[1770846168676,9.58499124,80.407,80.343,33.97961577]
[1770846168874,11.30219341,80.435,80.343,33.97961577]
[1770846169075,9.58483456,80.434,80.356,33.97961577]
[1770846169275,35.25225727,80.432,80.356,33.97961577]
[1770846169474,9.58483456,80.431,80.356,33.97961577]
[1770846169687,9.58483456,80.43,80.356,33.97961577]
[1770846169883,9.58483456,80.429,80.356,33.97961577]
[1770846170078,9.58483456,80.428,80.356,33.97961577]
[1770846170279,9.58483456,80.427,80.356,33.97961577]
[1770846170483,9.58483456,80.426,80.356,33.97961577]
[1770846170680,9.58483456,80.425,80.363,11.2074]
[1770846170887,9.58483456,80.424,80.364,33.44137397]
[1770846171081,9.58483456,80.423,80.367,33.44137397]
[1770846171286,9.58483456,80.422,80.367,33.44137397]
[1770846171581,35.25225727,80.432,80.367,33.44137397]
[1770846171787,34.51046315,80.43,80.37,33.44137397]
[1770846171988,9.58132586,80.429,80.37,33.44137397]
[1770846172184,9.58132586,80.428,80.37,33.44137397]
[1770846172485,9.58132586,80.427,80.37,33.44137397]
[1770846172678,9.58132586,80.426,80.37,33.44137397]
[1770846172877,9.58132586,80.425,80.37,33.44137397]
[1770846173079,9.58132586,80.424,80.37,33.44137397]
[1770846173287,9.58132586,80.423,80.37,33.44137397]
[1770846173487,34.51046315,80.43,80.37,33.44137397]
[1770846173789,34.51046315,80.428,80.37,33.44137397]
[1770846173989,44.09183329,80.427,80.372,33.44137397]
[1770846174285,9.58137014,80.426,80.372,33.44137397]
[1770846174485,34.51046315,80.427,80.372,33.44137397]
[1770846174486,9.58137014,80.425,80.372,33.44137397]
[1770846174681,9.58137014,80.424,80.372,33.44137397]
[1770846174888,9.58137014,80.423,80.391,0.078652]
[1770846175084,9.58137014,80.422,80.391,0.078652]
[1770846175278,9.58137014,80.421,80.391,0.078652]
[1770846175474,9.58137014,80.42,80.391,0.078652]
[1770846175674,34.51046315,80.418,80.372,33.44137397]
[1770846175881,34.51046315,80.416,80.372,33.44137397]
[1770846176076,9.58137014,80.415,80.372,33.44137397]
[1770846176288,34.51046315,80.429,80.376,33.44137397]
[1770846176586,44.19467833,80.428,80.376,33.44137397]
[1770846176789,9.68421518,80.427,80.376,33.44137397]
[1770846176987,9.68421518,80.426,80.377,44.64687397]
[1770846177179,44.19467833,80.425,80.378,33.44137397]
[1770846177376,34.51046315,80.423,80.378,33.44137397]
[1770846177580,34.51046315,80.419,80.344,33.44137397]
[1770846177779,10.62705529,80.42,80.361,11.2077]
[1770846177780,34.51046315,80.417,80.361,11.2077]
[1770846178081,34.51046315,80.415,80.362,33.44137397]
[1770846178291,34.51046315,80.413,80.362,33.44137397]
[1770846178485,34.51046315,80.411,80.362,33.44137397]
[1770846178688,9.68421518,80.41,80.362,33.44137397]
[1770846178889,9.68421518,80.409,80.362,33.44137397]
[1770846179183,9.68421518,80.408,80.362,33.44137397]
[1770846179486,34.51046315,80.406,80.362,33.44137397]
[1770846179692,34.51046315,80.404,80.346,33.44137397]
[1770846179889,34.51046315,80.402,80.346,33.44137397]
[1770846180092,9.68421518,80.401,80.346,33.44137397]
[1770846180392,9.68421518,80.4,80.346,33.44137397]
[1770846180591,34.51046315,80.397,80.346,33.44137397]
[1770846180886,10.61469304,80.36,80.311,33.44137397]
[1770846181091,34.51046315,80.358,80.279,250.82]
[1770846181293,34.51046315,80.356,80.28,33.44137397]
[1770846181492,9.68421518,80.355,80.281,33.44137397]
[1770846181789,9.68421518,80.354,80.3,33.44137397]
[1770846181993,9.68421518,80.353,80.3,33.44137397]
[1770846182196,9.68421518,80.352,80.3,33.44137397]
[1770846182386,34.51046315,80.356,80.3,33.44137397]
[1770846182586,44.18450081,80.355,80.3,33.44137397]
[1770846182801,9.67403766,80.354,80.3,33.44137397]
[1770846182990,9.67403766,80.354,80.268,2.1664965]
[1770846182991,34.51046315,80.339,80.29,11.2177]
[1770846183288,34.51046315,80.339,80.291,33.44137397]
[1770846183684,34.51046315,80.339,80.292,44.65867397]
[1770846183884,34.51046315,80.339,80.293,33.44137397]
[1770846185884,34.51046315,80.339,80.278,33.44137397]
[1770846186088,99.28,80.379,80.274,33.44137397]
[1770846186089,34.51046315,80.319,80.274,33.44137397]
[1770846189000,10.61469304,80.32,80.274,33.44137397]
[1770846189886,10.61469304,80.32,80.258,33.44137397]
[1770846189887,34.51046315,80.319,80.258,33.44137397]
[1770846190698,34.51046315,80.319,80.266,11.221]
[1770846190898,34.51046315,80.319,80.258,33.44137397]
[1770846192389,10.61469304,80.32,80.283,33.44137397]
[1770846193300,10.61469304,80.32,80.287,11.2181]
[1770846193898,10.61469304,80.33,80.287,11.2181]
[1770846194098,34.51046315,80.329,80.287,11.2181]
[1770846194601,34.51046315,80.329,80.283,33.44137397]
[1770846195396,34.51046315,80.328,80.283,33.44137397]
[1770846195902,34.51046315,80.328,80.271,11.2204]
[1770846196099,34.51046315,80.328,80.271,44.66177397]
[1770846196898,34.51046315,80.325,80.271,44.66177397]
[1770846197307,34.51046315,80.325,80.272,33.44137397]
[1770846197708,34.51046315,80.323,80.272,33.44137397]
[1770846199007,11.2134,80.321,80.272,33.44137397]
[1770846199208,45.72386315,80.321,80.272,33.44137397]
[1770846199404,11.2146,80.313,80.272,33.44137397]
[1770846199612,34.51046315,80.312,80.259,33.44137397]
[1770846199807,34.51046315,80.328,80.259,33.44137397]
[1770846200009,15.48622417,80.354,80.25,10.61469304]
[1770846200010,10.61469304,80.35,80.286,33.44137397]
[1770846200207,10.61469304,80.37,80.286,33.44137397]
[1770846200416,44.14264813,80.369,80.291,33.44137397]
[1770846200612,11.2077,80.362,80.306,32.62897025]
[1770846200812,33.64819583,80.383,80.311,32.62897025]
[1770846201008,33.64819583,80.383,80.29,109.97469304]
[1770846201009,33.64819583,80.383,80.331,32.62897025]
[1770846201209,3.96566348,80.38,80.333,32.62897025]
[1770846201404,3.96566348,80.37,80.333,32.62897025]
[1770846201803,3.96566348,80.36,80.319,32.62897025]
[1770846202513,11.2085,80.357,80.319,32.62897025]
[1770846202808,3.96566348,80.36,80.319,32.62897025]
[1770846203012,33.64819583,80.323,80.254,32.62897025]
[1770846203208,9.65081539,80.322,80.254,32.62897025]
[1770846203509,33.64819583,80.323,80.254,32.62897025]
[1770846203510,9.65081539,80.321,80.254,32.62897025]
[1770846203713,11.2143,80.315,80.262,11.2215]
[1770846203911,11.2143,80.315,80.23,10.62790611]
[1770846203912,99.36,80.337,80.263,32.62897025]
[1770846204214,33.64819583,80.335,80.263,32.62897025]
[1770846204410,33.64819583,80.333,80.263,32.62897025]
[1770846204607,33.64819583,80.331,80.263,32.62897025]
[1770846204909,9.64932898,80.33,80.263,32.62897025]
[1770846205103,33.64819583,80.331,80.263,32.62897025]
[1770846205104,9.64932898,80.329,80.263,32.62897025]
[1770846205302,33.64819583,80.331,80.263,32.62897025]
[1770846205303,9.64932898,80.328,80.263,32.62897025]
[1770846205511,9.64932898,80.327,80.263,32.62897025]
[1770846205814,33.64819583,80.331,80.27,32.62897025]
[1770846206708,33.64819583,80.331,80.28,32.62897025]
[1770846207513,33.64819583,80.331,80.287,11.2181]
[1770846207807,10.62790611,80.34,80.288,35.66254342]
[1770846208009,45.66495588,80.36,80.288,35.66254342]
[1770846208203,35.03704977,80.358,80.288,35.66254342]
[1770846208408,35.03704977,80.356,80.288,35.66254342]
[1770846208713,35.03704977,80.34,80.288,35.66254342]
[1770846209320,35.03704977,80.338,80.273,35.66254342]
[1770846209521,35.03704977,80.336,80.273,35.66254342]
[1770846209708,35.03704977,80.335,80.273,35.66254342]
[1770846210507,9.6462943,80.334,80.273,35.66254342]
[1770846210712,35.03704977,80.335,80.288,11.218]
[1770846210908,9.6462943,80.334,80.288,46.88054342]
[1770846211109,9.64546132,80.333,80.288,46.88054342]
[1770846211311,35.03704977,80.335,80.288,46.88054342]
[1770846211511,10.62790611,80.34,80.288,11.218]
[1770846211512,35.03704977,80.333,80.288,11.218]
[1770846211711,10.62790611,80.34,80.288,11.218]
[1770846211712,35.03704977,80.331,80.288,11.218]
[1770846212022,9.64707988,80.33,80.288,11.218]
[1770846212311,15.48622417,80.359,80.255,214.62]
[1770846212312,35.03704977,80.346,80.295,11.217]
[1770846212619,9.64776986,80.345,80.296,35.66254342]
[1770846212922,9.64776986,80.344,80.296,35.66254342]
[1770846213114,9.64776986,80.343,80.296,35.66254342]
[1770846213315,9.64776986,80.342,80.296,35.66254342]
[1770846213515,9.64776986,80.342,80.243,294.0]
[1770846213516,35.03704977,80.319,80.239,35.66254342]
[1770846213715,35.03704977,80.319,80.199,174.6955]
[1770846213716,35.03704977,80.279,80.223,35.66254342]
[1770846213916,35.03704977,80.279,80.166,174.7684]
[1770846213917,9.65229045,80.278,80.235,35.66254342]
[1770846214118,35.03704977,80.296,80.235,35.66254342]
[1770846214417,35.03704977,80.294,80.235,35.66254342]
[1770846214623,35.03704977,80.292,80.235,35.66254342]
[1770846214919,9.65966696,80.291,80.235,35.66254342]
[1770846215121,35.03704977,80.289,80.235,35.66254342]
[1770846215322,35.03704977,80.287,80.235,35.66254342]
[1770846215516,44.69671673,80.286,80.235,35.66254342]
[1770846215716,9.65966696,80.285,80.235,35.66254342]
[1770846215919,35.03704977,80.286,80.235,35.66254342]
[1770846216118,9.65750165,80.285,80.235,35.66254342]
[1770846216313,11.49432468,80.314,80.235,35.66254342]
[1770846216519,9.65701079,80.313,80.235,35.66254342]
[1770846216719,35.03704977,80.311,80.257,11.2222]
[1770846216921,35.03704977,80.309,80.257,11.2222]
[1770846217113,35.03704977,80.307,80.257,11.2222]
[1770846217318,35.03704977,80.305,80.257,11.2222]
[1770846217514,9.65701079,80.304,80.265,11.2212]
[1770846217723,9.65701079,80.303,80.265,11.2212]
[1770846217923,9.65701079,80.302,80.265,11.2212]
[1770846218124,9.66737638,80.301,80.251,35.66254342]
[1770846218326,11.214,80.317,80.251,35.66254342]
[1770846218525,9.66715322,80.316,80.251,35.66254342]
[1770846218720,9.66715322,80.315,80.251,35.66254342]
[1770846219026,9.66715322,80.314,80.251,35.66254342]
[1770846219324,9.66715322,80.313,80.251,35.66254342]
[1770846219526,9.66715322,80.312,80.251,35.66254342]
[1770846219726,9.66715322,80.311,80.255,35.66254342]
[1770846219923,9.66715322,80.31,80.255,35.66254342]
[1770846220122,9.66715322,80.309,80.255,35.66254342]
[1770846220424,11.49432468,80.315,80.255,35.66254342]
[1770846220425,9.66715322,80.308,80.255,35.66254342]
[1770846220625,9.66715322,80.307,80.255,35.66254342]
[1770846220826,9.66715322,80.306,80.255,35.66254342]
[1770846221024,9.66715322,80.305,80.255,35.66254342]
[1770846221218,9.66715322,80.304,80.255,35.66254342]
[1770846221418,9.66715322,80.303,80.255,35.66254342]
[1770846221617,9.66715322,80.302,80.255,35.66254342]
[1770846221818,9.66715322,80.301,80.257,35.66254342]
[1770846222026,9.66715322,80.3,80.257,35.66254342]
[1770846222228,9.66715322,80.299,80.257,35.66254342]
[1770846222525,11.214,80.317,80.257,35.66254342]
[1770846222726,9.69819067,80.316,80.257,35.66254342]
[1770846222929,9.69819067,80.315,80.257,35.66254342]
[1770846223126,21.19251535,80.314,80.257,35.66254342]
[1770846223322,9.69819067,80.313,80.257,35.66254342]
[1770846223522,9.69819067,80.312,80.257,35.66254342]
[1770846223722,9.69819067,80.311,80.266,11.2211]
[1770846223928,9.69819067,80.31,80.266,11.2211]
[1770846224237,9.69819067,80.309,80.266,11.2211]
[1770846224533,9.69819067,80.308,80.266,11.2211]
[1770846224716,9.69819067,80.307,80.269,35.66254342]
[1770846224916,9.69819067,80.306,80.269,35.66254342]
[1770846225120,9.69819067,80.305,80.269,35.66254342]
[1770846225321,9.69819067,80.304,80.278,11.2193]
[1770846225521,9.69819067,80.303,80.269,35.66254342]
[1770846225722,9.69819067,80.302,80.269,35.66254342]
[1770846226022,9.69819067,80.301,80.269,35.66254342]
[1770846226228,9.69819067,80.3,80.269,35.66254342]
[1770846226530,9.69819067,80.299,80.269,35.66254342]
[1770846226733,9.69819067,80.298,80.269,35.66254342]
[1770846227034,9.69819067,80.297,80.269,35.66254342]
[1770846227228,9.72590402,80.296,80.269,35.66254342]
[1770846227533,9.72590402,80.295,80.269,35.66254342]
[1770846227832,9.72590402,80.294,80.269,35.66254342]
[1770846228029,9.72590402,80.293,80.269,35.66254342]
[1770846228233,9.72590402,80.292,80.269,35.66254342]
[1770846228426,9.72590402,80.291,80.269,35.66254342]
[1770846228627,9.72590402,80.29,80.269,35.66254342]
[1770846228829,9.72590402,80.289,80.269,35.66254342]
[1770846229128,9.72590402,80.288,80.269,35.66254342]
[1770846229329,9.72590402,80.287,80.269,35.66254342]
[1770846229523,9.72590402,80.286,80.269,35.66254342]
[1770846229719,4.02e-06,80.285,80.269,35.66254342]
[1770846229923,11.5959228,80.304,80.269,35.66254342]
[1770846230720,35.03704977,80.314,80.269,35.66254342]
[1770846231528,35.03704977,80.314,80.27,11.2204]
[1770846231927,10.62790611,80.31,80.253,285.54302807]
[1770846232119,32.21497366,80.303,80.253,285.54302807]
[1770846232324,32.21497366,80.303,80.253,33.82302807]
[1770846232831,32.21497366,80.303,80.268,11.2207]
[1770846233524,32.21497366,80.303,80.253,33.82302807]
[1770846233525,43.43097366,80.303,80.261,11.2218]
[1770846233724,32.21497366,80.303,80.261,11.2218]
[1770846236433,32.21497366,80.303,80.267,11.2208]
[1770846238830,32.21497366,80.317,80.274,11.2199]
[1770846239134,32.21497366,80.317,80.274,33.82302807]
[1770846239725,32.21497366,80.317,80.257,252.98]
[1770846239726,32.21497366,80.317,80.258,33.82302807]
[1770846240329,32.21497366,80.313,80.258,33.82302807]
[1770846240730,32.21497366,80.308,80.258,33.82302807]
[1770846240927,32.21497366,80.3,80.258,33.82302807]
[1770846241136,11.5959228,80.301,80.205,294.0]
[1770846241137,11.5959228,80.292,80.235,33.82302807]
[1770846241335,11.5959228,80.288,80.235,33.82302807]
[1770846241639,32.21497366,80.287,80.235,33.82302807]
[1770846241840,32.21497366,80.285,80.235,33.82302807]
[1770846242032,32.21497366,80.283,80.235,33.82302807]
[1770846242231,32.21497366,80.281,80.235,33.82302807]
[1770846242439,32.21497366,80.279,80.235,33.82302807]
[1770846242631,32.21497366,80.277,80.238,11.225]
[1770846242829,9.65684257,80.276,80.238,11.225]
[1770846243032,9.65684257,80.275,80.238,11.225]
[1770846243228,9.65684257,80.274,80.238,11.225]
[1770846243435,9.65684257,80.273,80.238,11.225]
[1770846243734,9.65684257,80.272,80.238,11.225]
[1770846243939,9.65684257,80.271,80.235,33.82302807]
[1770846244235,32.21497366,80.277,80.235,33.82302807]
[1770846244440,9.65186457,80.276,80.235,33.82302807]
[1770846244640,41.86683823,80.275,80.243,11.2243]
[1770846244832,41.86683823,80.274,80.243,11.2243]
[1770846245035,9.65186457,80.273,80.243,11.2243]
[1770846245233,9.65186457,80.272,80.235,33.82302807]
[1770846245544,32.21497366,80.288,80.235,33.82302807]
[1770846245741,41.86847287,80.287,80.235,33.82302807]
[1770846245941,9.65349921,80.286,80.235,33.82302807]